[Event "Titled Tuesday Blitz May 4 2021"]
[White "Ismayil, Malak"]
[Black "Borawski, Jakub"]
[WhiteFideId "13412604"]
[BlackFideId "1143000"]
[WhiteElo "1879"]
[BlackElo "2020"]
[Result "1-0"]
[Round "11"]
[TimeControl "180+1"]
[Date "2021.05.04"]
[WhiteClock "0:00:03"]
[BlackClock "0:00:02"]

1. e4 {[%clk 0:03:00]}  e5 {[%clk 0:03:00]} 2. Nf3 {[%clk 0:02:58]}  Nc6 {[%clk 0:03:00]} 3. Bc4 {[%clk 0:02:55]}  Bc5 {[%clk 0:03:00]} 4. d3 {[%clk 0:02:53]}  Nf6 {[%clk 0:03:00]} 5. Nc3 {[%clk 0:02:50]}  a6 {[%clk 0:02:56]} 6. Bg5 {[%clk 0:02:47]}  h6 {[%clk 0:02:52]} 7. Bxf6 {[%clk 0:02:41]}  Qxf6 {[%clk 0:02:53]} 8. Nd5 {[%clk 0:02:41]}  Qd8 {[%clk 0:02:53]} 9. Qd2 {[%clk 0:02:40]}  d6 {[%clk 0:02:50]} 10. O-O-O {[%clk 0:02:33]}  Be6 {[%clk 0:02:47]} 11. h3 {[%clk 0:02:32]}  b5 {[%clk 0:02:45]} 12. Bb3 {[%clk 0:02:27]}  a5 {[%clk 0:02:45]} 13. a4 {[%clk 0:02:20]}  Ne7 {[%clk 0:02:20]} 14. Nxe7 {[%clk 0:02:13]}  Qxe7 {[%clk 0:02:11]} 15. d4 {[%clk 0:02:04]}  Bb4 {[%clk 0:01:54]} 16. Qe2 {[%clk 0:02:02]}  bxa4 {[%clk 0:01:44]} 17. Bxa4+ {[%clk 0:01:57]}  Bd7 {[%clk 0:01:43]} 18. Bxd7+ {[%clk 0:01:56]}  Qxd7 {[%clk 0:01:44]} 19. dxe5 {[%clk 0:01:52]}  Qa4 {[%clk 0:01:44]} 20. Kb1 {[%clk 0:01:48]}  O-O {[%clk 0:01:42]} 21. exd6 {[%clk 0:01:41]}  Bxd6 {[%clk 0:01:41]} 22. Rd4 {[%clk 0:01:38]}  Qc6 {[%clk 0:01:35]} 23. e5 {[%clk 0:01:32]}  Be7 {[%clk 0:01:30]} 24. Qc4 {[%clk 0:01:30]}  Qb6 {[%clk 0:01:28]} 25. Qb3 {[%clk 0:01:23]}  Qa6 {[%clk 0:01:15]} 26. Qd3 {[%clk 0:01:13]}  Qb6 {[%clk 0:01:12]} 27. Nd2 {[%clk 0:01:12]}  a4 {[%clk 0:01:10]} 28. Nc4 {[%clk 0:01:09]}  Qc6 {[%clk 0:01:05]} 29. Rd1 {[%clk 0:00:51]}  Rab8 {[%clk 0:01:01]} 30. Ka1 {[%clk 0:00:47]}  Rb4 {[%clk 0:00:53]} 31. Na3 {[%clk 0:00:44]}  Rb6 {[%clk 0:00:47]} 32. Qc4 {[%clk 0:00:41]}  Qb7 {[%clk 0:00:45]} 33. Qc3 {[%clk 0:00:34]}  Rb8 {[%clk 0:00:42]} 34. Nc4 {[%clk 0:00:33]}  Rb4 {[%clk 0:00:40]} 35. Rb1 {[%clk 0:00:27]}  Bc5 {[%clk 0:00:30]} 36. Rd7 {[%clk 0:00:21]}  Qb5 {[%clk 0:00:31]} 37. Rxc7 {[%clk 0:00:19]}  Rxc4 {[%clk 0:00:29]} 38. Qf3 {[%clk 0:00:16]}  Qe8 {[%clk 0:00:23]} 39. Qd5 {[%clk 0:00:14]}  Qe6 {[%clk 0:00:20]} 40. Rxc5 {[%clk 0:00:09]}  Qxd5 {[%clk 0:00:15]} 41. Rxd5 {[%clk 0:00:09]}  Rxc2 {[%clk 0:00:16]} 42. f4 {[%clk 0:00:07]}  Rxg2 {[%clk 0:00:16]} 43. Ra5 {[%clk 0:00:07]}  Rb4 {[%clk 0:00:15]} 44. f5 {[%clk 0:00:07]}  Rf2 {[%clk 0:00:13]} 45. e6 {[%clk 0:00:06]}  fxe6 {[%clk 0:00:11]} 46. fxe6 {[%clk 0:00:07]}  Re2 {[%clk 0:00:11]} 47. Ra6 {[%clk 0:00:08]}  Rbe4 {[%clk 0:00:11]} 48. Rc1 {[%clk 0:00:06]}  Rxe6 {[%clk 0:00:10]} 49. Rxa4 {[%clk 0:00:06]}  Rb6 {[%clk 0:00:09]} 50. Ra8+ {[%clk 0:00:06]}  Kh7 {[%clk 0:00:09]} 51. Ra2 {[%clk 0:00:06]}  Rb3 {[%clk 0:00:09]} 52. h4 {[%clk 0:00:06]}  Rh2 {[%clk 0:00:09]} 53. Ra7 {[%clk 0:00:04]}  Rxh4 {[%clk 0:00:07]} 54. Rg1 {[%clk 0:00:05]}  Rbb4 {[%clk 0:00:01]} 55. Rgxg7+ {[%clk 0:00:04]}  Kh8 {[%clk 0:00:02]} 56. Rh7+ {[%clk 0:00:05]}  Kg8 {[%clk 0:00:02]} 57. Rhc7 {[%clk 0:00:05]}  Rhf4 {[%clk 0:00:01]} 58. Rc8+ {[%clk 0:00:05]}  Rf8 {[%clk 0:00:01]} 59. Rc6 {[%clk 0:00:05]}  Rf1+ {[%clk 0:00:01]} 60. Ka2 {[%clk 0:00:05]}  Rf8 {[%clk 0:00:02]} 61. Rxh6 {[%clk 0:00:05]}  Rc4 {[%clk 0:00:01]} 62. Rg6+ {[%clk 0:00:04]}  Kh8 {[%clk 0:00:02]} 63. Ra5 {[%clk 0:00:04]}  Rd4 {[%clk 0:00:02]} 64. Rh5# {[%clk 0:00:03]} 1-0


[Site "https://www.chess.com"]

[Event "Titled Tuesday Blitz May 4 2021"]
[White "Jary, Sergey"]
[Black "Mayaud, Raphael"]
[WhiteFideId "14110350"]
[BlackFideId "627151"]
[WhiteElo "2260"]
[BlackElo "2191"]
[Result "1/2-1/2"]
[Round "11"]
[TimeControl "180+1"]
[Date "2021.05.04"]
[WhiteClock "0:01:49"]
[BlackClock "0:00:15"]

1. Nf3 {[%clk 0:03:00]}  d5 {[%clk 0:02:59]} 2. g3 {[%clk 0:02:59]}  c6 {[%clk 0:02:59]} 3. c4 {[%clk 0:02:59]}  Nf6 {[%clk 0:02:59]} 4. Qc2 {[%clk 0:02:59]}  dxc4 {[%clk 0:02:50]} 5. Qxc4 {[%clk 0:02:57]}  Be6 {[%clk 0:02:47]} 6. Qc2 {[%clk 0:02:56]}  g6 {[%clk 0:02:46]} 7. Bg2 {[%clk 0:02:54]}  Bg7 {[%clk 0:02:46]} 8. O-O {[%clk 0:02:53]}  O-O {[%clk 0:02:45]} 9. a3 {[%clk 0:02:52]}  Qc8 {[%clk 0:02:30]} 10. Re1 {[%clk 0:02:51]}  Rd8 {[%clk 0:02:13]} 11. e4 {[%clk 0:02:46]}  c5 {[%clk 0:01:45]} 12. d3 {[%clk 0:02:42]}  h6 {[%clk 0:01:28]} 13. Be3 {[%clk 0:02:42]}  Nbd7 {[%clk 0:01:28]} 14. Nbd2 {[%clk 0:02:41]}  Ng4 {[%clk 0:01:22]} 15. Rac1 {[%clk 0:02:38]}  Nxe3 {[%clk 0:01:22]} 16. Rxe3 {[%clk 0:02:37]}  b6 {[%clk 0:01:21]} 17. b4 {[%clk 0:02:35]}  cxb4 {[%clk 0:01:20]} 18. axb4 {[%clk 0:02:35]}  Qxc2 {[%clk 0:01:19]} 19. Rxc2 {[%clk 0:02:35]}  Rdc8 {[%clk 0:01:20]} 20. Rxc8+ {[%clk 0:02:33]}  Rxc8 {[%clk 0:01:20]} 21. d4 {[%clk 0:02:33]}  Rc1+ {[%clk 0:01:18]} 22. Bf1 {[%clk 0:02:33]}  Nf6 {[%clk 0:01:09]} 23. d5 {[%clk 0:02:27]}  Bd7 {[%clk 0:01:09]} 24. Re1 {[%clk 0:02:25]}  Rxe1 {[%clk 0:01:09]} 25. Nxe1 {[%clk 0:02:25]}  a5 {[%clk 0:01:08]} 26. bxa5 {[%clk 0:02:19]}  bxa5 {[%clk 0:01:09]} 27. Nd3 {[%clk 0:02:17]}  a4 {[%clk 0:00:50]} 28. Nc5 {[%clk 0:02:17]}  Be8 {[%clk 0:00:47]} 29. Nc4 {[%clk 0:02:15]}  Ng4 {[%clk 0:00:40]} 30. Bd3 {[%clk 0:02:14]}  Ne5 {[%clk 0:00:37]} 31. Nxe5 {[%clk 0:02:12]}  Bxe5 {[%clk 0:00:38]} 32. Bc4 {[%clk 0:02:12]}  Bd6 {[%clk 0:00:38]} 33. Nd3 {[%clk 0:02:11]}  a3 {[%clk 0:00:32]} 34. Nc1 {[%clk 0:02:11]}  Ba4 {[%clk 0:00:29]} 35. Kf1 {[%clk 0:02:10]}  Bc2 {[%clk 0:00:27]} 36. f3 {[%clk 0:02:09]}  Bb4 {[%clk 0:00:25]} 37. Ke2 {[%clk 0:02:08]}  Kf8 {[%clk 0:00:21]} 38. Ba2 {[%clk 0:02:07]}  Ke8 {[%clk 0:00:21]} 39. Nd3 {[%clk 0:02:07]}  Bxd3+ {[%clk 0:00:21]} 40. Kxd3 {[%clk 0:02:06]}  Bc5 {[%clk 0:00:22]} 41. h3 {[%clk 0:02:01]}  Bf2 {[%clk 0:00:22]} 42. g4 {[%clk 0:02:00]}  Bg3 {[%clk 0:00:18]} 43. Kd4 {[%clk 0:01:59]}  f6 {[%clk 0:00:19]} 44. Ke3 {[%clk 0:01:56]}  g5 {[%clk 0:00:16]} 45. Kd4 {[%clk 0:01:54]}  Kd7 {[%clk 0:00:15]} 46. Kc5 {[%clk 0:01:54]}  Bd6+ {[%clk 0:00:14]} 47. Kb5 {[%clk 0:01:53]}  Kc7 {[%clk 0:00:14]} 48. Bc4 {[%clk 0:01:51]}  Kb7 {[%clk 0:00:14]} 49. Ba2 {[%clk 0:01:50]}  Kc7 {[%clk 0:00:14]} 50. Bc4 {[%clk 0:01:49]}  Kb7 {[%clk 0:00:14]} 51. Ba2 {[%clk 0:01:49]}  Kc7 {[%clk 0:00:15]} 1/2-1/2


[Site "https://www.chess.com"]

[Event "Titled Tuesday Blitz May 4 2021"]
[White "Juhasz, Agoston"]
[Black "Titichoca Daza, Daniel"]
[WhiteFideId "778346"]
[BlackFideId "3309550"]
[WhiteElo "2211"]
[BlackElo "1910"]
[Result "0-1"]
[Round "11"]
[TimeControl "180+1"]
[Date "2021.05.04"]
[WhiteClock "0:00:03"]
[BlackClock "0:00:05"]

1. e4 {[%clk 0:03:00]}  c5 {[%clk 0:02:52]} 2. Nf3 {[%clk 0:02:59]}  e6 {[%clk 0:02:52]} 3. Nc3 {[%clk 0:02:54]}  a6 {[%clk 0:02:52]} 4. a4 {[%clk 0:02:47]}  d6 {[%clk 0:02:48]} 5. Be2 {[%clk 0:02:42]}  Nf6 {[%clk 0:02:47]} 6. O-O {[%clk 0:02:41]}  Be7 {[%clk 0:02:45]} 7. d4 {[%clk 0:02:39]}  cxd4 {[%clk 0:02:44]} 8. Nxd4 {[%clk 0:02:40]}  O-O {[%clk 0:02:45]} 9. Be3 {[%clk 0:02:40]}  Qc7 {[%clk 0:02:44]} 10. g4 {[%clk 0:02:32]}  Nc6 {[%clk 0:02:43]} 11. h4 {[%clk 0:02:14]}  Nxd4 {[%clk 0:02:21]} 12. Qxd4 {[%clk 0:02:02]}  e5 {[%clk 0:02:21]} 13. Qd1 {[%clk 0:01:58]}  Be6 {[%clk 0:02:18]} 14. g5 {[%clk 0:01:56]}  Nd7 {[%clk 0:02:17]} 15. Bg4 {[%clk 0:01:40]}  Rac8 {[%clk 0:01:21]} 16. Rc1 {[%clk 0:01:36]}  Nb6 {[%clk 0:01:10]} 17. b3 {[%clk 0:00:42]}  Qxc3 {[%clk 0:01:03]} 18. Bxb6 {[%clk 0:00:41]}  Rc6 {[%clk 0:00:48]} 19. a5 {[%clk 0:00:36]}  Bd8 {[%clk 0:00:24]} 20. Bxd8 {[%clk 0:00:26]}  Rxd8 {[%clk 0:00:25]} 21. Bxe6 {[%clk 0:00:25]}  fxe6 {[%clk 0:00:24]} 22. Qg4 {[%clk 0:00:25]}  d5 {[%clk 0:00:25]} 23. exd5 {[%clk 0:00:23]}  exd5 {[%clk 0:00:26]} 24. Rfd1 {[%clk 0:00:20]}  e4 {[%clk 0:00:23]} 25. Qf5 {[%clk 0:00:19]}  Qxa5 {[%clk 0:00:17]} 26. c4 {[%clk 0:00:18]}  Rcd6 {[%clk 0:00:16]} 27. cxd5 {[%clk 0:00:14]}  Rxd5 {[%clk 0:00:17]} 28. Qe6+ {[%clk 0:00:11]}  Kf8 {[%clk 0:00:12]} 29. Re1 {[%clk 0:00:06]}  Re8 {[%clk 0:00:07]} 30. Rc8 {[%clk 0:00:05]}  Rxc8 {[%clk 0:00:05]} 31. Qxc8+ {[%clk 0:00:06]}  Rd8 {[%clk 0:00:05]} 32. Qe6 {[%clk 0:00:05]}  Qxe1+ {[%clk 0:00:03]} 33. Kg2 {[%clk 0:00:05]}  Qe2 {[%clk 0:00:04]} 34. Qf5+ {[%clk 0:00:04]}  Kg8 {[%clk 0:00:04]} 35. Qe6+ {[%clk 0:00:05]}  Kh8 {[%clk 0:00:04]} 36. Qe7 {[%clk 0:00:03]}  Qf3+ {[%clk 0:00:04]} 37. Kh2 {[%clk 0:00:03]}  Qxf2+ {[%clk 0:00:04]} 38. Kh3 {[%clk 0:00:03]}  Qf3+ {[%clk 0:00:04]} 39. Kh2 {[%clk 0:00:03]}  Rd2+ {[%clk 0:00:05]} 0-1


[Site "https://www.chess.com"]

[Event "Titled Tuesday Blitz May 4 2021"]
[White "Jumabayev, Rinat"]
[Black "Kollars, Dmitrij"]
[WhiteFideId "13702661"]
[BlackFideId "12909572"]
[WhiteElo "2535"]
[BlackElo "2576"]
[Result "1-0"]
[Round "11"]
[TimeControl "180+1"]
[Date "2021.05.04"]
[WhiteClock "0:00:06"]
[BlackClock "0:00:04"]

1. d4 {[%clk 0:03:00]}  Nf6 {[%clk 0:02:59]} 2. c4 {[%clk 0:03:01]}  e6 {[%clk 0:03:00]} 3. Nf3 {[%clk 0:03:01]}  d5 {[%clk 0:02:59]} 4. g3 {[%clk 0:03:02]}  Bb4+ {[%clk 0:02:56]} 5. Bd2 {[%clk 0:03:02]}  a5 {[%clk 0:02:56]} 6. Bg2 {[%clk 0:03:01]}  dxc4 {[%clk 0:02:56]} 7. Qc2 {[%clk 0:02:55]}  Bxd2+ {[%clk 0:02:53]} 8. Qxd2 {[%clk 0:02:48]}  c6 {[%clk 0:02:52]} 9. a4 {[%clk 0:02:45]}  Ne4 {[%clk 0:02:51]} 10. Qc1 {[%clk 0:02:29]}  Nd6 {[%clk 0:02:42]} 11. Ne5 {[%clk 0:02:19]}  Na6 {[%clk 0:02:38]} 12. O-O {[%clk 0:02:16]}  Nb4 {[%clk 0:02:33]} 13. Rd1 {[%clk 0:02:13]}  O-O {[%clk 0:02:32]} 14. Na3 {[%clk 0:02:13]}  Qc7 {[%clk 0:02:18]} 15. Qf4 {[%clk 0:02:06]}  Nf5 {[%clk 0:01:57]} 16. Nexc4 {[%clk 0:01:55]}  Qd8 {[%clk 0:01:46]} 17. Rac1 {[%clk 0:01:51]}  h6 {[%clk 0:01:30]} 18. Qd2 {[%clk 0:01:44]}  Nd6 {[%clk 0:01:24]} 19. Ne5 {[%clk 0:01:40]}  Bd7 {[%clk 0:01:17]} 20. e3 {[%clk 0:01:37]}  Be8 {[%clk 0:01:11]} 21. Qe2 {[%clk 0:01:36]}  Qe7 {[%clk 0:01:05]} 22. h4 {[%clk 0:01:34]}  f6 {[%clk 0:00:54]} 23. Nd3 {[%clk 0:01:20]}  Nxd3 {[%clk 0:00:51]} 24. Qxd3 {[%clk 0:01:21]}  Bf7 {[%clk 0:00:50]} 25. e4 {[%clk 0:01:17]}  Rfd8 {[%clk 0:00:49]} 26. e5 {[%clk 0:00:49]}  Nf5 {[%clk 0:00:48]} 27. Qc3 {[%clk 0:00:49]}  fxe5 {[%clk 0:00:33]} 28. dxe5 {[%clk 0:00:50]}  Qb4 {[%clk 0:00:34]} 29. Rxd8+ {[%clk 0:00:37]}  Rxd8 {[%clk 0:00:33]} 30. Qxb4 {[%clk 0:00:38]}  axb4 {[%clk 0:00:34]} 31. Nc4 {[%clk 0:00:38]}  Bh5 {[%clk 0:00:26]} 32. Bf1 {[%clk 0:00:33]}  Bf3 {[%clk 0:00:25]} 33. a5 {[%clk 0:00:29]}  Rd4 {[%clk 0:00:19]} 34. Ra1 {[%clk 0:00:17]}  Bd5 {[%clk 0:00:18]} 35. b3 {[%clk 0:00:17]}  Kf8 {[%clk 0:00:15]} 36. Rc1 {[%clk 0:00:11]}  Ke7 {[%clk 0:00:15]} 37. Be2 {[%clk 0:00:11]}  Kd8 {[%clk 0:00:14]} 38. Kf1 {[%clk 0:00:11]}  Kc7 {[%clk 0:00:13]} 39. Ke1 {[%clk 0:00:11]}  g5 {[%clk 0:00:12]} 40. hxg5 {[%clk 0:00:10]}  hxg5 {[%clk 0:00:13]} 41. Nd2 {[%clk 0:00:11]}  Ne7 {[%clk 0:00:10]} 42. Nf3 {[%clk 0:00:05]}  Bxf3 {[%clk 0:00:09]} 43. Bxf3 {[%clk 0:00:06]}  g4 {[%clk 0:00:10]} 44. Be2 {[%clk 0:00:06]}  Ng6 {[%clk 0:00:09]} 45. Rc5 {[%clk 0:00:06]}  b6 {[%clk 0:00:07]} 46. axb6+ {[%clk 0:00:06]}  Kxb6 {[%clk 0:00:08]} 47. Rc4 {[%clk 0:00:07]}  Rxc4 {[%clk 0:00:04]} 48. Bxc4 {[%clk 0:00:08]}  Nxe5 {[%clk 0:00:05]} 49. Bxe6 {[%clk 0:00:08]}  Kc5 {[%clk 0:00:06]} 50. Ke2 {[%clk 0:00:07]}  Kd4 {[%clk 0:00:06]} 51. Bf5 {[%clk 0:00:08]}  Kc3 {[%clk 0:00:05]} 52. Be6 {[%clk 0:00:08]}  c5 {[%clk 0:00:03]} 53. Ke3 {[%clk 0:00:05]}  c4 {[%clk 0:00:03]} 54. bxc4 {[%clk 0:00:05]}  b3 {[%clk 0:00:04]} 55. c5 {[%clk 0:00:06]} 1-0


[Site "https://www.chess.com"]

[Event "Titled Tuesday Blitz May 4 2021"]
[White "Kanyamarala, Tarun"]
[Black "Gandhi, Shyam"]
[WhiteFideId "45004714"]
[BlackFideId "2052008"]
[WhiteElo "2086"]
[BlackElo "1951"]
[Result "0-1"]
[Round "11"]
[TimeControl "180+1"]
[Date "2021.05.04"]
[WhiteClock "0:00:40"]
[BlackClock "0:01:26"]

1. d4 {[%clk 0:03:00]}  g6 {[%clk 0:03:00]} 2. e4 {[%clk 0:02:58]}  Bg7 {[%clk 0:03:00]} 3. Nc3 {[%clk 0:02:58]}  d6 {[%clk 0:03:01]} 4. Be3 {[%clk 0:02:58]}  a6 {[%clk 0:03:00]} 5. a4 {[%clk 0:02:58]}  e5 {[%clk 0:02:55]} 6. Nge2 {[%clk 0:02:54]}  exd4 {[%clk 0:02:50]} 7. Nxd4 {[%clk 0:02:52]}  Nf6 {[%clk 0:02:46]} 8. f3 {[%clk 0:02:51]}  Nbd7 {[%clk 0:02:44]} 9. Bc4 {[%clk 0:02:50]}  O-O {[%clk 0:02:44]} 10. O-O {[%clk 0:02:50]}  Kh8 {[%clk 0:02:44]} 11. a5 {[%clk 0:02:46]}  Ne5 {[%clk 0:02:44]} 12. Ba2 {[%clk 0:02:45]}  Qe7 {[%clk 0:02:42]} 13. Bg5 {[%clk 0:02:39]}  h6 {[%clk 0:02:41]} 14. Be3 {[%clk 0:02:30]}  Bd7 {[%clk 0:02:36]} 15. Qd2 {[%clk 0:02:30]}  Nc6 {[%clk 0:02:30]} 16. Nxc6 {[%clk 0:02:27]}  Bxc6 {[%clk 0:02:28]} 17. Bxh6 {[%clk 0:02:28]}  Bxh6 {[%clk 0:02:16]} 18. Qxh6+ {[%clk 0:02:29]}  Nh7 {[%clk 0:02:16]} 19. Rad1 {[%clk 0:02:17]}  Qg5 {[%clk 0:02:15]} 20. Qxg5 {[%clk 0:02:14]}  Nxg5 {[%clk 0:02:16]} 21. Kf2 {[%clk 0:02:02]}  Rae8 {[%clk 0:02:09]} 22. Rd4 {[%clk 0:02:00]}  f5 {[%clk 0:02:06]} 23. exf5 {[%clk 0:02:00]}  gxf5 {[%clk 0:02:05]} 24. Rf4 {[%clk 0:01:55]}  Kg7 {[%clk 0:02:04]} 25. Rd1 {[%clk 0:01:38]}  Bxf3 {[%clk 0:02:02]} 26. gxf3 {[%clk 0:01:36]}  Nh3+ {[%clk 0:02:01]} 27. Kg3 {[%clk 0:01:36]}  Nxf4 {[%clk 0:02:00]} 28. Kxf4 {[%clk 0:01:37]}  Rh8 {[%clk 0:01:58]} 29. Rg1+ {[%clk 0:01:36]}  Kf8 {[%clk 0:01:53]} 30. Kg3 {[%clk 0:01:19]}  c6 {[%clk 0:01:48]} 31. Bc4 {[%clk 0:01:17]}  d5 {[%clk 0:01:48]} 32. Bd3 {[%clk 0:01:18]}  f4+ {[%clk 0:01:48]} 33. Kxf4 {[%clk 0:01:16]}  Rxh2 {[%clk 0:01:48]} 34. Rg6 {[%clk 0:01:11]}  Re7 {[%clk 0:01:43]} 35. Rf6+ {[%clk 0:01:10]}  Rf7 {[%clk 0:01:43]} 36. Rxf7+ {[%clk 0:01:09]}  Kxf7 {[%clk 0:01:44]} 37. Na4 {[%clk 0:01:09]}  Rh4+ {[%clk 0:01:43]} 38. Ke5 {[%clk 0:01:04]}  Rxa4 {[%clk 0:01:44]} 39. Bf5 {[%clk 0:00:52]}  Rxa5 {[%clk 0:01:38]} 40. Be6+ {[%clk 0:00:50]}  Ke7 {[%clk 0:01:36]} 41. Bc8 {[%clk 0:00:49]}  Rb5 {[%clk 0:01:35]} 42. b3 {[%clk 0:00:48]}  Rb4 {[%clk 0:01:27]} 43. Bf5 {[%clk 0:00:46]}  b5 {[%clk 0:01:25]} 44. Bd3 {[%clk 0:00:43]}  a5 {[%clk 0:01:24]} 45. f4 {[%clk 0:00:43]}  a4 {[%clk 0:01:24]} 46. bxa4 {[%clk 0:00:40]}  bxa4 {[%clk 0:01:25]} 47. f5 {[%clk 0:00:40]}  a3 {[%clk 0:01:25]} 48. f6+ {[%clk 0:00:40]}  Kf8 {[%clk 0:01:26]} 0-1


[Site "https://www.chess.com"]

[Event "Titled Tuesday Blitz May 4 2021"]
[White "Kilpatrick, Callum"]
[Black "Skoberne, Jure"]
[WhiteFideId "414425"]
[BlackFideId "14604299"]
[WhiteElo "2466"]
[BlackElo "2559"]
[Result "0-1"]
[Round "11"]
[TimeControl "180+1"]
[Date "2021.05.04"]
[WhiteClock "0:00:49"]
[BlackClock "0:01:47"]

1. e4 {[%clk 0:03:00]}  d6 {[%clk 0:02:54]} 2. d4 {[%clk 0:03:00]}  Nf6 {[%clk 0:02:54]} 3. Nc3 {[%clk 0:03:01]}  g6 {[%clk 0:02:55]} 4. Be3 {[%clk 0:03:01]}  c6 {[%clk 0:02:55]} 5. f3 {[%clk 0:03:01]}  b5 {[%clk 0:02:55]} 6. Qd2 {[%clk 0:03:01]}  Nbd7 {[%clk 0:02:54]} 7. O-O-O {[%clk 0:03:01]}  Qa5 {[%clk 0:02:54]} 8. Kb1 {[%clk 0:03:00]}  b4 {[%clk 0:02:55]} 9. Nce2 {[%clk 0:03:00]}  Nb6 {[%clk 0:02:56]} 10. Nc1 {[%clk 0:03:00]}  Ba6 {[%clk 0:02:54]} 11. Nb3 {[%clk 0:02:52]}  Qa4 {[%clk 0:02:54]} 12. Bxa6 {[%clk 0:02:45]}  Qxa6 {[%clk 0:02:54]} 13. Qxb4 {[%clk 0:02:46]}  Bg7 {[%clk 0:02:52]} 14. Nh3 {[%clk 0:02:40]}  O-O {[%clk 0:02:51]} 15. Nf4 {[%clk 0:02:38]}  Rfb8 {[%clk 0:02:51]} 16. Qa5 {[%clk 0:02:27]}  Qc8 {[%clk 0:02:50]} 17. Bc1 {[%clk 0:02:18]}  Nfd7 {[%clk 0:02:30]} 18. h4 {[%clk 0:02:09]}  Nc4 {[%clk 0:02:30]} 19. Qc3 {[%clk 0:02:08]}  Ndb6 {[%clk 0:02:27]} 20. h5 {[%clk 0:02:07]}  a5 {[%clk 0:02:27]} 21. hxg6 {[%clk 0:02:06]}  hxg6 {[%clk 0:02:27]} 22. a4 {[%clk 0:02:00]}  Nxb2 {[%clk 0:02:22]} 23. Qxb2 {[%clk 0:01:40]}  Nxa4 {[%clk 0:02:21]} 24. Qa1 {[%clk 0:01:40]}  Nb6 {[%clk 0:02:17]} 25. Bb2 {[%clk 0:01:35]}  a4 {[%clk 0:02:16]} 26. d5 {[%clk 0:01:07]}  axb3 {[%clk 0:02:14]} 27. Bxg7 {[%clk 0:01:07]}  Rxa1+ {[%clk 0:02:12]} 28. Bxa1 {[%clk 0:01:08]}  bxc2+ {[%clk 0:02:12]} 29. Kxc2 {[%clk 0:01:08]}  cxd5+ {[%clk 0:02:12]} 30. Kd2 {[%clk 0:01:05]}  e5 {[%clk 0:02:12]} 31. Nxd5 {[%clk 0:01:03]}  Nxd5 {[%clk 0:02:08]} 32. exd5 {[%clk 0:01:04]}  Qc4 {[%clk 0:02:06]} 33. Ke1 {[%clk 0:01:03]}  Qa2 {[%clk 0:01:59]} 34. Rf1 {[%clk 0:00:56]}  Rb1 {[%clk 0:01:58]} 35. Rxb1 {[%clk 0:00:54]}  Qxb1+ {[%clk 0:01:59]} 36. Kf2 {[%clk 0:00:55]}  Qa2+ {[%clk 0:01:59]} 37. Kg1 {[%clk 0:00:54]}  Qxd5 {[%clk 0:02:00]} 38. Bc3 {[%clk 0:00:54]}  Qd3 {[%clk 0:01:58]} 39. Be1 {[%clk 0:00:54]}  f5 {[%clk 0:01:58]} 40. Bf2 {[%clk 0:00:54]}  d5 {[%clk 0:01:57]} 41. Rc1 {[%clk 0:00:53]}  d4 {[%clk 0:01:56]} 42. Re1 {[%clk 0:00:52]}  e4 {[%clk 0:01:55]} 43. fxe4 {[%clk 0:00:53]}  fxe4 {[%clk 0:01:56]} 44. Bh4 {[%clk 0:00:53]}  e3 {[%clk 0:01:55]} 45. Bf6 {[%clk 0:00:54]}  Kf7 {[%clk 0:01:54]} 46. Be5 {[%clk 0:00:53]}  Ke6 {[%clk 0:01:53]} 47. Bh8 {[%clk 0:00:52]}  Qd2 {[%clk 0:01:48]} 48. Ra1 {[%clk 0:00:51]}  e2 {[%clk 0:01:47]} 49. Kf2 {[%clk 0:00:49]}  e1=Q+ {[%clk 0:01:47]} 0-1


[Site "https://www.chess.com"]